Cogmind - Beta 13 @@@ ROGUE MODE // 2024.04.13 @ 01:23:15 Player: Zasarad Result: Destroyed by G-34 Mercenary with Small Laser Performance ------------- Evolutions (0) 0 Regions Visited (1) 200 Robots Destroyed (17) 85 Value Destroyed (344) 344 Prototype IDs (0) 0 Alien Tech Used (0) 0 Bonus (0) 0 TOTAL SCORE: 629 Bonus ------- None Cogmind --------- Core Integrity 0/250 Matter 131/300 Energy 47/100 System Corruption 2% Temperature Cool (6) Movement Core (100) Ox1 Location -10/Materials Parts ------- > --- POWER (1) -------- (None) > --- PROPULSION (2) --- (None) > --- UTILITY (2) ------ Small Storage Unit > --- WEAPON (2) ------- Small Laser > --- INVENTORY (8) ---- Heavy Assault Rifle Grenade Launcher Mining Laser Peak State ------------ > --- POWER ------------ Light Ion Engine > --- PROPULSION ------- Aluminum Leg Aluminum Leg > --- UTILITY ---------- Disposable Heat Sink Field Recycling Unit > --- WEAPON ----------- Medium Laser Heavy Assault Rifle > --- INVENTORY -------- Disposable Heat Sink EM Pulse Gun Small Laser Heavy Assault Rifle [Rating: 10] Favorites ----------- Power Light Ion Engine Engine Light Ion Engine Propulsion Aluminum Leg Leg Aluminum Leg Wheel Wheel Hover Unit Hover Unit Utility Sensor Array Device Sensor Array Storage Small Storage Unit Weapon Heavy Assault Rifle Energy Gun Medium Laser Ballistic Gun Heavy Assault Rifle Launcher Grenade Launcher Special Weapon Mining Laser Special Melee Weapon Datajack Build | -11 -10 ------- Run | Yrd Mat Slots Evolved . | . . Power . | . . Propulsion . | . . Utility . | . . Weapon . | . . Parts Attached 53 | 13 40 Power 5 | 1 4 Engine 5 | 1 4 Core . | . . Reactor . | . . Propulsion 19 | 8 11 Treads . | . . Leg 13 | 4 9 Wheel 4 | 4 . Hover 2 | . 2 Flight . | . . Utility 5 | . 5 Device 3 | . 3 Storage 2 | . 2 Processor . | . . Hackware . | . . Protection . | . . Artifact . | . . Weapon 24 | 4 20 Energy Gun 9 | 4 5 Energy Cannon . | . . Ballistic Gun 5 | . 5 Ballistic Cannon . | . . Launcher 3 | . 3 Special Weapon 6 | . 6 Impact Weapon . | . . Slashing Weapon . | . . Piercing Weapon . | . . Special Melee Weapon 1 | . 1 Unidentified Prototypes . | . . Parts Lost 5 | . 5 Power 2 | . 2 Propulsion . | . . Utility . | . . Weapon 3 | . 3 Highest Loss Streak 4 | . 4 To Critical Strikes . | . . Average Slot Usage (%) 81 | . 81 Engine 13 | . 13 Leg 20 | . 20 Wheel 1 | . 1 Device 10 | . 10 Storage 7 | . 7 Energy Gun 8 | . 8 Ballistic Gun 10 | . 10 Launcher 4 | . 4 Special Weapon 4 | . 4 Naked Turns 3 | . 3 Heaviest Build 51 | 7 51 Greatest Support 20 | 20 20 Greatest Overweight (x) 8 | . 8 Average Overweight (x) . | . . Largest Inventory Capacity 20 | 5 20 Average Capacity 9 | 5 9 Most Carried 6 | 5 6 Average Carried 4 | 2 4 Final Capacity 8 | 5 8 Final Carried 3 | 3 3 Class Distribution -------------------- 81% | Mutant 18% | Scavenger-Mutant Dominant Class ---------------- Mutant | -10/Materials Resources | -11 -10 ----------- Run | Yrd Mat Matter Collected 663 | 310 353 Remotely . | . . Salvage Created 373 | 78 295 Parts 34 | 8 26 Haulers Intercepted . | . . Recyclers Shooed . | . . Parts Field Recycled . | . . Retrieved Matter . | . . Parts Self-Destructed . | . . Prevented . | . . Kills | -11 -10 ------- Run | Yrd Mat Combat Hostiles Destroyed 9 | 1 8 Guns 5 | 1 4 AOE 4 | . 4 Classes Destroyed 6 | 3 3 Worker 2 | 1 1 Builder 2 | . 2 Tunneler 1 | 1 . Watcher 3 | . 3 Swarmer 3 | . 3 Grunt 6 | 1 5 Best Kill Streak 5 | 2 5 Combat Bots Only 3 | 1 3 Max Kills in Single Turn 2 | 1 2 Gunslinging . | . . Exploded 1 | . 1 Melee . | . . Uniques/NPCs Destroyed . | . . Combat | -11 -10 -------- Run | Yrd Mat Hostile Shots Fired 108 | 5 103 Missed 29 | 2 27 Damage Taken 1132 | 33 1099 Core 251 | . 251 Absorbed by Shields . | . . Core Remaining (%) 100 | 100 . Volleys Fired 52 | 7 45 Largest 2 | 2 2 Hottest 100 | 90 100 Shots Fired 84 | 14 70 Gun 63 | 14 49 Cannon . | . . Launcher 6 | . 6 Special 15 | . 15 Kinetic 25 | . 25 Thermal 46 | 7 39 Explosive 6 | . 6 Electromagnetic 7 | 7 . Robot Hit Streak 7 | 4 7 Robot Miss Streak 4 | 2 4 Penetration Max . | . . Secondary Targets . | . . Shots Hit Robots 35 | 6 29 Core Hits 26 | 4 22 Critical Kills . | . . Critical Parts Destroyed . | . . Critical Strikes 4 | 1 3 Burn 3 | . 3 Corrupt 1 | 1 . Melee Attacks . | . . Impact . | . . Slashing . | . . Piercing . | . . Sneak Attacks . | . . Combat Hostiles . | . . Follow-up Attacks . | . . Damage Inflicted 925 | 77 848 Guns 425 | 77 348 Cannons . | . . Explosions 493 | . 493 Melee . | . . Ramming 1 | . 1 Kinetic 247 | . 247 Thermal 145 | 38 107 Explosive 493 | . 493 Electromagnetic 39 | 39 . Impact . | . . Slashing . | . . Piercing . | . . Highest Corruption 2 | . 2 Average Corruption 1 | . 1 Corruption Purged . | . . Corruption Blocked . | . . Effects 10 | . 10 Matter Fused 2 | . 2 Heat Flow Errors 2 | . 2 Energy Discharges 1 | . 1 Parts Rejected 1 | . 1 Data Loss (minor) 1 | . 1 Data Loss (major) 2 | . 2 Alerts 1 | . 1 Overload Shots . | . . Overflow Damage 20 | . 20 Projectiles . | . . Explosions 20 | . 20 Melee . | . . Knockbacks . | . . Impact . | . . Kinetic . | . . Secondary . | . . Self-Inflicted Damage 57 | . 57 Shots 3 | . 3 Rammed . | . . Targets Rammed 2 | . 2 Kicked 2 | . 2 Crushed . | . . Highest Temperature 271 | 98 271 Average Temperature 33 | 47 31 Received Heat Transfer 423 | 18 405 Siege Activations . | . . Robots Corrupted . | . . Combat Hostiles . | . . Parts Fried . | . . Impact Corruptions . | . . Robots Melted . | . . Combat Hostiles . | . . Parts Melted . | . . Heat Transferred 679 | 111 568 Parts Sabotaged . | . . Parts Stolen . | . . Parts Stripped . | . . Power Chain Reactions . | . . Alert | -11 -10 ------- Run | Yrd Mat Peak Influence 186 | 31 186 Initial 20 | . 20 Average 44 | 8 49 Maximum Alert Level . | . . Low Security (%) 100 | 100 100 Level 1 . | . . Level 2 . | . . Level 3 . | . . Level 4 . | . . Level 5 . | . . High Security . | . . Max Security . | . . Squads Dispatched 1 | . 1 Investigation 1 | . 1 Extermination . | . . Reinforcement . | . . Assault . | . . Garrison . | . . Intercept . | . . Searches Triggered . | . . Construction Impeded . | . . Haulers Reinforced . | . . Active Scanning Responses . | . . Cargo Convoy Interrupts . | . . Stealth | -11 -10 --------- Run | Yrd Mat Distress Signals . | . . Communications Jammed . | . . Distress Signals . | . . Times Spotted 15 | 1 14 Peak Tracking Total 4 | 1 4 Tactical Retreats . | . . Traps | -11 -10 ------- Run | Yrd Mat Traps Triggered 7 | . 7 Indirectly . | . . Trap Hack Attempts . | . . Triggered . | . . Disarmed . | . . Reprogrammed . | . . Reused . | . . Traps Extracted . | . . Installed . | . . Triggered . | . . Machines | -11 -10 ---------- Run | Yrd Mat Machines Disabled 3 | . 3 Max in Single Turn 1 | . 1 Machines Repaired . | . . Machines Dismantled . | . . Machines Sabotaged . | . . Overloaded Fab Kills . | . . Hacking | -11 -10 --------- Run | Yrd Mat Machines Accessed 7 | . 7 Terminals 5 | . 5 Fabricators . | . . Repair Stations 1 | . 1 Recycling Units 1 | . 1 Scanalyzers . | . . Garrison Access . | . . Total Hacks 21 | . 21 Successful 12 | . 12 Failed 9 | . 9 Catastrophic 2 | . 2 Database Lockouts . | . . Manual . | . . Terminals 15 | . 15 Fabricators . | . . Repair Stations 3 | . 3 Recycling Units 3 | . 3 Scanalyzers . | . . Garrison Access . | . . Terminal Hacks 8 | . 8 Record 4 | . 4 Emergency Access Points 1 | . 1 Alert Level 1 | . 1 Patrol Status 1 | . 1 Hauler Manifests 1 | . 1 Fabricator Hacks . | . . Repair Station Hacks 1 | . 1 Scan Component 1 | . 1 Recycling Unit Hacks 3 | . 3 Recycle Component 1 | . 1 Process 1 | . 1 Retrieve Matter 1 | . 1 Scanalyzer . | . . Garrison Access Hacks . | . . Unauthorized Hacks . | . . Terminals . | . . Fabricators . | . . Repair Stations . | . . Recycling Units . | . . Scanalyzers . | . . Garrison Access . | . . Data Cores Recovered . | . . Used . | . . Hacking Detections 6 | . 6 Full Trace Events 2 | . 2 Feedback Events . | . . Feedback Blocked . | . . Robot Schematics Acquired . | . . Robots Built . | . . Authchips . | . . Time . | . . Total Robot Build Rating . | . . Part Schematics Acquired . | . . Parts Built . | . . Authchips . | . . Time . | . . Total Part Build Rating . | . . Parts Repaired . | . . Time . | . . Parts Recycled 1 | . 1 Recycled Matter 13 | . 13 Retrieved Matter 13 | . 13 Retrieved Components . | . . Parts Scanalyzed . | . . Part Schematics Acquired . | . . Parts Damaged . | . . Bothacking | -11 -10 ------------ Run | Yrd Mat Used RIF Installer . | . . Robots Hacked . | . . Non-combat . | . . Combat . | . . Robot Hacks Applied . | . . Relay Couplers Released . | . . Fabnet Peak Effective % . | . . Robots Rewired . | . . Allies Hacked . | . . Hacks Repelled . | . . Allies | -11 -10 -------- Run | Yrd Mat Total Allies . | . . Largest Group . | . . Highest-Rated Group . | . . Highest-Rated Ally . | . . Total Orders . | . . Ally Attacks . | . . Total Damage . | . . Kills . | . . Allies Corrupted . | . . Allies Melted . | . . Intel | -11 -10 ------- Run | Yrd Mat Robot Analysis Total . | . . Derelict Logs Recovered . | . . Drone Launches . | . . Drone Recoveries . | . . Exploration | -11 -10 ------------- Run | Yrd Mat Turns Passed 1421 | 162 1259 Spaces Moved 763 | 136 627 Core 48 | 39 9 Treads . | . . Legs 583 | 36 547 Wheels 125 | 61 64 Hover 7 | . 7 Flight . | . . Fastest Speed 50 | 50 50 Average Speed 145 | 81 159 Slowest Speed 540 | 120 540 Overloaded Moves . | . . Propulsion Burnouts . | . . Robots Hopped . | . . Cave-ins Triggered . | . . Exploration Rate (%) 38 | 8 69 Regions Visited 1 Branch Regions . Pre-discovered Areas . | . . Known Exits Taken . | . . Unknown Exits Taken 1 | 1 . Scrap Searched . | . . Spaces Dug 12 | . 12 Terrain Destroyed 47 | . 47 Melee . | . . Projectile 12 | . 12 AOE 35 | . 35 Terrain Rammed . | . . Walls Destroyed . | . . Machines Disabled . | . . Actions | -11 -10 --------- Run | Yrd Mat Total 962 | 171 791 Wait 30 | 3 27 Move 762 | 135 627 Hop . | . . Pick Up 41 | 10 31 Fast Attach . | . . Attach 32 | 8 24 Detach 3 | 1 2 Swap 21 | 5 16 Drop 19 | 2 17 Fire 52 | 7 45 Melee . | . . Ram . | . . Kick 2 | . 2 Crush . | . . Escape Stasis . | . . Rewire . | . . Trap . | . . Miscellaneous . | . . Route ------- -11/Scrapyard -10/Materials (discovered 3 exits: [*Mat] / [*Min x2]) History --------- Turn | Location | Event 2 | -11/Scrapyard | Met Revision 17 111 | -11/Scrapyard | Discovered new exit (range 8) 163 | -11/Scrapyard | Entered Materials 276 | -10/Materials | Discovered new exit (range 15) 312 | -10/Materials | Build established: Mutant 751 | -10/Materials | Core integrity fell below 50% 1147 | -10/Materials | Discovered new exit (range 13) 1151 | -10/Materials | Discovered new exit (range 8) 1413 | -10/Materials | Core integrity fell below 20% 1422 | -10/Materials | Destroyed by G-34 Mercenary with Small Laser Last Messages --------------- Atomic Centrifuge disabled. Kicked G-34 Mercenary. U-05 Engineer lays Concrete. Particle Gun destroyed. U-05 Engineer lays Concrete. Lgt. Ion Engine destroyed. The unstable cave ceiling collapses. U-05 Engineer lays Concrete. System corrupted: Aluminum Leg rejected. U-05 Engineer lays Concrete. U-05 Engineer builds a Wall. Welding Torch destroyed. Bump into an enemy to attack with the active melee weapon. Even while active, melee weapons do not fire together with ranged weapons in the same volley. M-13 Machinist repairs G-47 Trooper. Datajack destroyed. U-05 Engineer builds a Wall. [Achievement: First Step to Greatness] Map ----- +----------------------------------------------------+ | | | | | | | | | | | | | | | ?????????????????????????????????????????????????? | | ?????????????????????????????????????????????????? | | ???????????????????#######???????????????????????? | | ???????###################???????????????????????? | | ????? #???????????????????????? | | ????? ###########??????????????? | | ????? = # [ #??????????????? | | ????????#############* # #??????????????? | | ??????????# # # """"""" #??????????????? | | ?????????# # # """"""" #??????????????? | | ?????????# # + """"""" #??????????????? | | ?????????# """ """ # # """"""" #??????????????? | | ?????????# """ """ + = # """"""" #??????????????? | | ?????????? """ """ # # #??????????????? | | ?????????? """ """ # ###########??????????????? | | ?????????# # # T [ #????????????????? | | #################### # %###???????????????? | | + #?????# ; """ u# #???????????????? | | # """ """ T #?????# #@"" ###???????????????? | | # """ """ #?????# # "" #?????????????????? | | # """ """ #?????# #gmg !#?????????????????? | | # ! #?????## #########?????????????????? | | #######+######??????# #?????????????????????????? | | #??????????# #?????????????????????????? | | ############ ###???????????????????????? | | ## # T#???????????????????????? | | ## #### ##""" # ""#???????????????????????? | | ?#/#### #""R # ###?????#####?????????????? | | ?# # ##""" """ # ####### #?????????????? | | ## # ## "" """ # #?????????????? | | # # #" """ # < +?????????????? | | # # #" + #?????????????? | | # # ## # ##### #?????????????? | | # + ############ ####??? ##?????????????? | | # # #?????????# "#????????????????????? | | # ! # ########### ""#????????????????????? | | ####### # # ||#????????????????????? | | # # # < ""#????????????????????? | | # # # ||#????????????????????? | | "" # # # ""#????????????????????? | | """ + + # "#????????????????????? | | """ # # ## ####????????????????????? | | # # ## #???????????????????????? | +----------------------------------------------------+ Best States ------------- Heat Dissipation 25 Coolant Potential 50 Energy Generation 10 Energy Capacity 250 Matter Stores 300 Matter Capacity 300 Sight Range 16 Robot Scan Range 14 Terrain Scan Density 10 Evasion (%) 55 Item Schematics ----------------- None Robot Schematics ------------------ None Fabricated ------------ Nothing Alien Tech Used ----------------- None Achievements -------------- First Step to Greatness One Hack Too Far Shopping List Challenges ------------ None Game ------ Seed HardlightSuperchargedUnit Manual? 0 Play Time 00:43:12 Cumulative 0.6 hours Start 2024.04.13 @ 00:38:03 End 2024.04.13 @ 01:23:15 Sessions 1 Manual Loads 0 Difficulty Rogue Special Mode None Game No. 1 Rogue 1 Adventurer 0 Explorer 0 Win Type - Total 0 Types 0/0/0/0/0/0/0/0/0 Lore% 0 Gallery% 1 Achievement% 1 Wizard Run 0 Options --------- Layout 1 ASCII 0 Keyboard 0 Movement Mouse Keybinds 0 Fullscreen 2 Font 24/Smallcaps Map View 25x17 Zoom Use 79% Tactical HUD 0 Map Filters NONE Filters NONE Steam 1 RUN: 489a38cf-3e8c-4662-b5b8-1be4e8162249